[Event "Titled Tuesday Blitz November 07 Late 2023"]
[White "Thomforde-Toates, Noah"]
[Black "Akhayan, Ruben"]
[WhiteFideId "30951992"]
[BlackFideId "204439"]
[WhiteElo "2646"]
[BlackElo "2447"]
[Result "1-0"]
[Round "3"]
[TimeControl "180+1"]
[Date "2023.11.07"]
[WhiteClock "0:00:16"]
[BlackClock "0:00:13"]
[Board "75"]

1. d4 {[%clk 0:03:00]}  Nf6 {[%clk 0:02:58]} 2. Nc3 {[%clk 0:03:00]}  d5 {[%clk 0:02:56]} 3. Bf4 {[%clk 0:03:00]}  g6 {[%clk 0:02:56]} 4. e3 {[%clk 0:03:00]}  Bg7 {[%clk 0:02:57]} 5. h4 {[%clk 0:03:00]}  h5 {[%clk 0:02:47]} 6. Nf3 {[%clk 0:02:59]}  O-O {[%clk 0:02:45]} 7. Ne5 {[%clk 0:02:58]}  c6 {[%clk 0:02:37]} 8. Qf3 {[%clk 0:02:58]}  Ng4 {[%clk 0:02:35]} 9. Qg3 {[%clk 0:02:56]}  Nxe5 {[%clk 0:02:31]} 10. dxe5 {[%clk 0:02:56]}  Be6 {[%clk 0:02:28]} 11. Bd3 {[%clk 0:02:53]}  Nd7 {[%clk 0:02:28]} 12. O-O-O {[%clk 0:02:50]}  Nc5 {[%clk 0:02:25]} 13. Ne2 {[%clk 0:02:45]}  Nxd3+ {[%clk 0:02:24]} 14. Rxd3 {[%clk 0:02:43]}  c5 {[%clk 0:02:11]} 15. Rhd1 {[%clk 0:02:39]}  a5 {[%clk 0:02:05]} 16. Nc3 {[%clk 0:02:38]}  a4 {[%clk 0:02:02]} 17. Nxd5 {[%clk 0:02:38]}  Bxd5 {[%clk 0:02:02]} 18. Rxd5 {[%clk 0:02:38]}  Qb6 {[%clk 0:02:02]} 19. a3 {[%clk 0:02:34]}  e6 {[%clk 0:02:00]} 20. Rd6 {[%clk 0:02:33]}  Qb5 {[%clk 0:01:57]} 21. Bg5 {[%clk 0:02:30]}  c4 {[%clk 0:01:57]} 22. Bf6 {[%clk 0:02:29]}  c3 {[%clk 0:01:54]} 23. bxc3 {[%clk 0:02:29]}  Qc5 {[%clk 0:01:54]} 24. Bxg7 {[%clk 0:02:05]}  Qxa3+ {[%clk 0:01:48]} 25. Kd2 {[%clk 0:02:05]}  Kxg7 {[%clk 0:01:46]} 26. Qg5 {[%clk 0:02:05]}  Rac8 {[%clk 0:01:38]} 27. Ke2 {[%clk 0:01:52]}  Qxc3 {[%clk 0:01:31]} 28. Kf3 {[%clk 0:01:48]}  Qxc2 {[%clk 0:01:28]} 29. R1d3 {[%clk 0:01:48]}  a3 {[%clk 0:01:21]} 30. Rxa3 {[%clk 0:01:30]}  Qf5+ {[%clk 0:01:17]} 31. Qxf5 {[%clk 0:01:30]}  exf5 {[%clk 0:01:18]} 32. Rb3 {[%clk 0:01:27]}  Rc7 {[%clk 0:01:18]} 33. Rbb6 {[%clk 0:01:19]}  Re8 {[%clk 0:01:17]} 34. Rd5 {[%clk 0:01:16]}  Ree7 {[%clk 0:01:15]} 35. Rdb5 {[%clk 0:01:16]}  Rcd7 {[%clk 0:01:11]} 36. Kf4 {[%clk 0:01:15]}  Rc7 {[%clk 0:01:12]} 37. f3 {[%clk 0:01:14]}  Rc4+ {[%clk 0:01:11]} 38. Kg5 {[%clk 0:01:13]}  Rc2 {[%clk 0:01:02]} 39. g3 {[%clk 0:01:13]}  Rcc7 {[%clk 0:00:55]} 40. Rf6 {[%clk 0:00:59]}  Rcd7 {[%clk 0:00:51]} 41. Rfb6 {[%clk 0:00:56]}  Rc7 {[%clk 0:00:51]} 42. Rd6 {[%clk 0:00:52]}  Rc4 {[%clk 0:00:45]} 43. Rbb6 {[%clk 0:00:34]}  Rcc7 {[%clk 0:00:38]} 44. Kf4 {[%clk 0:00:27]}  Rc4+ {[%clk 0:00:37]} 45. Rd4 {[%clk 0:00:27]}  Rcc7 {[%clk 0:00:37]} 46. Rdb4 {[%clk 0:00:27]}  Rcd7 {[%clk 0:00:37]} 47. Rd6 {[%clk 0:00:27]}  Rc7 {[%clk 0:00:37]} 48. e4 {[%clk 0:00:27]}  fxe4 {[%clk 0:00:36]} 49. Rxe4 {[%clk 0:00:28]}  b5 {[%clk 0:00:35]} 50. Rd5 {[%clk 0:00:26]}  Rb7 {[%clk 0:00:35]} 51. Rb4 {[%clk 0:00:26]}  Rec7 {[%clk 0:00:33]} 52. Rdxb5 {[%clk 0:00:26]}  Rxb5 {[%clk 0:00:33]} 53. Rxb5 {[%clk 0:00:26]}  Rc4+ {[%clk 0:00:34]} 54. Ke3 {[%clk 0:00:26]}  Rc6 {[%clk 0:00:35]} 55. Rd5 {[%clk 0:00:25]}  Ra6 {[%clk 0:00:35]} 56. Rd6 {[%clk 0:00:24]}  Ra3+ {[%clk 0:00:35]} 57. Ke4 {[%clk 0:00:24]}  Ra4+ {[%clk 0:00:35]} 58. Rd4 {[%clk 0:00:25]}  Ra6 {[%clk 0:00:35]} 59. g4 {[%clk 0:00:25]}  hxg4 {[%clk 0:00:34]} 60. fxg4 {[%clk 0:00:26]}  Rb6 {[%clk 0:00:33]} 61. Kf4 {[%clk 0:00:26]}  Ra6 {[%clk 0:00:33]} 62. Rd7 {[%clk 0:00:25]}  Rb6 {[%clk 0:00:32]} 63. h5 {[%clk 0:00:24]}  gxh5 {[%clk 0:00:32]} 64. gxh5 {[%clk 0:00:24]}  Ra6 {[%clk 0:00:33]} 65. Kg5 {[%clk 0:00:23]}  Rb6 {[%clk 0:00:32]} 66. h6+ {[%clk 0:00:24]}  Kg8 {[%clk 0:00:32]} 67. Rd8+ {[%clk 0:00:21]}  Kh7 {[%clk 0:00:31]} 68. Rf8 {[%clk 0:00:21]}  Rg6+ {[%clk 0:00:25]} 69. Kf5 {[%clk 0:00:20]}  Rxh6 {[%clk 0:00:18]} 70. Rxf7+ {[%clk 0:00:20]}  Kg8 {[%clk 0:00:18]} 71. e6 {[%clk 0:00:16]}  Rh1 {[%clk 0:00:18]} 72. Kf6 {[%clk 0:00:16]}  Ra1 {[%clk 0:00:17]} 73. Rg7+ {[%clk 0:00:16]}  Kf8 {[%clk 0:00:16]} 74. e7+ {[%clk 0:00:15]}  Ke8 {[%clk 0:00:17]} 75. Rg8+ {[%clk 0:00:16]}  Kd7 {[%clk 0:00:13]} 76. e8=Q+ {[%clk 0:00:16]} 1-0


[Site "https://www.chess.com"]

[Event "Titled Tuesday Blitz November 07 Late 2023"]
[White "szachmistrz2500"]
[Black "Janaszak, Dawid"]
[BlackFideId "1119206"]
[WhiteElo "2446"]
[BlackElo "2645"]
[Result "1-0"]
[Round "3"]
[TimeControl "180+1"]
[Date "2023.11.07"]
[WhiteClock "0:00:13"]
[BlackClock "0:00:02"]
[Board "76"]

1. Nf3 {[%clk 0:03:00]}  d5 {[%clk 0:02:59]} 2. g3 {[%clk 0:03:01]}  g6 {[%clk 0:02:59]} 3. Bg2 {[%clk 0:03:01]}  Bg7 {[%clk 0:03:00]} 4. O-O {[%clk 0:03:01]}  Nf6 {[%clk 0:03:00]} 5. d3 {[%clk 0:03:01]}  O-O {[%clk 0:03:00]} 6. Nbd2 {[%clk 0:03:01]}  d4 {[%clk 0:03:01]} 7. e4 {[%clk 0:03:01]}  dxe3 {[%clk 0:03:01]} 8. fxe3 {[%clk 0:03:02]}  c5 {[%clk 0:03:02]} 9. e4 {[%clk 0:03:01]}  Nc6 {[%clk 0:03:02]} 10. e5 {[%clk 0:02:46]}  Ng4 {[%clk 0:03:01]} 11. Ne4 {[%clk 0:02:40]}  Ngxe5 {[%clk 0:02:59]} 12. Nxc5 {[%clk 0:02:38]}  Nxf3+ {[%clk 0:02:58]} 13. Qxf3 {[%clk 0:02:36]}  Nd4 {[%clk 0:02:25]} 14. Qf2 {[%clk 0:02:34]}  Qb6 {[%clk 0:02:21]} 15. Nb3 {[%clk 0:02:30]}  Nxc2 {[%clk 0:02:13]} 16. Qxb6 {[%clk 0:02:15]}  axb6 {[%clk 0:02:12]} 17. Rb1 {[%clk 0:02:16]}  Rxa2 {[%clk 0:02:12]} 18. Bg5 {[%clk 0:02:11]}  Be6 {[%clk 0:01:56]} 19. Nd2 {[%clk 0:02:07]}  Bd4+ {[%clk 0:01:55]} 20. Kh1 {[%clk 0:02:06]}  f6 {[%clk 0:01:55]} 21. Bh6 {[%clk 0:02:01]}  Rb8 {[%clk 0:01:46]} 22. Nf3 {[%clk 0:01:57]}  Be3 {[%clk 0:01:25]} 23. Bxe3 {[%clk 0:01:53]}  Nxe3 {[%clk 0:01:25]} 24. Rfe1 {[%clk 0:01:54]}  Nxg2 {[%clk 0:00:42]} 25. Rxe6 {[%clk 0:01:53]}  Rc8 {[%clk 0:00:38]} 26. Kxg2 {[%clk 0:01:28]}  Rc2+ {[%clk 0:00:38]} 27. Kh3 {[%clk 0:01:20]}  Raxb2 {[%clk 0:00:33]} 28. Rxb2 {[%clk 0:01:20]}  Rxb2 {[%clk 0:00:34]} 29. Rxe7 {[%clk 0:01:20]}  b5 {[%clk 0:00:35]} 30. Rxb7 {[%clk 0:01:20]}  b4 {[%clk 0:00:35]} 31. Nd4 {[%clk 0:01:19]}  Rd2 {[%clk 0:00:34]} 32. Rxb4 {[%clk 0:01:15]}  Rxd3 {[%clk 0:00:33]} 33. Kg4 {[%clk 0:01:15]}  h5+ {[%clk 0:00:31]} 34. Kf4 {[%clk 0:01:14]}  Kg7 {[%clk 0:00:31]} 35. h4 {[%clk 0:01:14]}  g5+ {[%clk 0:00:28]} 36. Ke4 {[%clk 0:01:04]}  Rd1 {[%clk 0:00:24]} 37. Rb7+ {[%clk 0:01:01]}  Kg6 {[%clk 0:00:23]} 38. Nf3 {[%clk 0:00:52]}  g4 {[%clk 0:00:20]} 39. Nd4 {[%clk 0:00:47]}  Re1+ {[%clk 0:00:19]} 40. Kd3 {[%clk 0:00:46]}  Rd1+ {[%clk 0:00:17]} 41. Ke3 {[%clk 0:00:45]}  Rf1 {[%clk 0:00:15]} 42. Ne2 {[%clk 0:00:43]}  Rf3+ {[%clk 0:00:15]} 43. Ke4 {[%clk 0:00:43]}  Ra3 {[%clk 0:00:15]} 44. Nf4+ {[%clk 0:00:37]}  Kh6 {[%clk 0:00:15]} 45. Ne2 {[%clk 0:00:27]}  Rf3 {[%clk 0:00:14]} 46. Rb8 {[%clk 0:00:20]}  Kg7 {[%clk 0:00:13]} 47. Rd8 {[%clk 0:00:18]}  Kh6 {[%clk 0:00:12]} 48. Rd3 {[%clk 0:00:18]}  f5+ {[%clk 0:00:12]} 49. Kd4 {[%clk 0:00:16]}  Rf2 {[%clk 0:00:11]} 50. Nf4 {[%clk 0:00:16]}  Ra2 {[%clk 0:00:10]} 51. Ke5 {[%clk 0:00:15]}  Ra5+ {[%clk 0:00:09]} 52. Kf6 {[%clk 0:00:15]}  Rc5 {[%clk 0:00:09]} 53. Ne6 {[%clk 0:00:13]}  Rb5 {[%clk 0:00:05]} 54. Rd8 {[%clk 0:00:13]}  Kh7 {[%clk 0:00:02]} 55. Ng5+ {[%clk 0:00:13]} 1-0


[Site "https://www.chess.com"]

[Event "Titled Tuesday Blitz November 07 Late 2023"]
[White "Makaraci, Tunahan"]
[Black "Ismagilov, Damir"]
[WhiteFideId "6356559"]
[BlackFideId "34199982"]
[WhiteElo "2434"]
[BlackElo "2626"]
[Result "0-1"]
[Round "3"]
[TimeControl "180+1"]
[Date "2023.11.07"]
[WhiteClock "0:00:00"]
[BlackClock "0:00:18"]
[Board "81"]

1. e4 {[%clk 0:03:00]}  g6 {[%clk 0:02:56]} 2. d4 {[%clk 0:02:56]}  Bg7 {[%clk 0:02:56]} 3. Nc3 {[%clk 0:02:56]}  d5 {[%clk 0:02:54]} 4. exd5 {[%clk 0:02:53]}  Nf6 {[%clk 0:02:50]} 5. Nf3 {[%clk 0:02:53]}  Nxd5 {[%clk 0:02:48]} 6. Bc4 {[%clk 0:02:53]}  Nxc3 {[%clk 0:02:48]} 7. bxc3 {[%clk 0:02:53]}  O-O {[%clk 0:02:48]} 8. O-O {[%clk 0:02:53]}  c5 {[%clk 0:02:48]} 9. Re1 {[%clk 0:02:52]}  Nc6 {[%clk 0:02:47]} 10. Be3 {[%clk 0:02:41]}  Bg4 {[%clk 0:02:42]} 11. Rb1 {[%clk 0:02:34]}  cxd4 {[%clk 0:02:21]} 12. cxd4 {[%clk 0:02:32]}  Nxd4 {[%clk 0:02:17]} 13. Bxd4 {[%clk 0:02:24]}  Bxf3 {[%clk 0:02:16]} 14. gxf3 {[%clk 0:01:43]}  Bxd4 {[%clk 0:01:51]} 15. Rxb7 {[%clk 0:01:42]}  Rc8 {[%clk 0:01:50]} 16. Bb3 {[%clk 0:01:38]}  Rc5 {[%clk 0:01:45]} 17. c3 {[%clk 0:01:16]}  Bf6 {[%clk 0:01:16]} 18. Qxd8 {[%clk 0:01:15]}  Rxd8 {[%clk 0:01:16]} 19. Rxa7 {[%clk 0:01:12]}  Rxc3 {[%clk 0:01:16]} 20. Kg2 {[%clk 0:01:03]}  Rd2 {[%clk 0:01:14]} 21. Re4 {[%clk 0:00:52]}  Kg7 {[%clk 0:01:02]} 22. Raa4 {[%clk 0:00:41]}  h5 {[%clk 0:00:58]} 23. h3 {[%clk 0:00:41]}  h4 {[%clk 0:00:57]} 24. Rac4 {[%clk 0:00:39]}  Rcd3 {[%clk 0:00:57]} 25. Kf1 {[%clk 0:00:24]}  Rb2 {[%clk 0:00:42]} 26. Re2 {[%clk 0:00:21]}  Rb1+ {[%clk 0:00:39]} 27. Kg2 {[%clk 0:00:21]}  Ra1 {[%clk 0:00:29]} 28. Rcc2 {[%clk 0:00:18]}  Rdd1 {[%clk 0:00:28]} 29. f4 {[%clk 0:00:14]}  Rg1+ {[%clk 0:00:27]} 30. Kf3 {[%clk 0:00:14]}  Rh1 {[%clk 0:00:28]} 31. Ke4 {[%clk 0:00:08]}  Rxh3 {[%clk 0:00:28]} 32. f3 {[%clk 0:00:09]}  Rg3 {[%clk 0:00:24]} 33. Rh2 {[%clk 0:00:06]}  Re1+ {[%clk 0:00:23]} 34. Rce2 {[%clk 0:00:06]}  Rf1 {[%clk 0:00:19]} 35. Rhf2 {[%clk 0:00:04]}  Rc1 {[%clk 0:00:18]} 36. Rc2 {[%clk 0:00:04]}  Rxc2 {[%clk 0:00:17]} 37. Bxc2 {[%clk 0:00:04]}  h3 {[%clk 0:00:17]} 38. Rh2 {[%clk 0:00:00]}  Rg2 {[%clk 0:00:18]} 0-1


[Site "https://www.chess.com"]

[Event "Titled Tuesday Blitz November 07 Late 2023"]
[White "Aarav Dengla"]
[Black "hristos03"]
[WhiteFideId "45059756"]
[WhiteElo "2625"]
[BlackElo "2434"]
[Result "1-0"]
[Round "3"]
[TimeControl "180+1"]
[Date "2023.11.07"]
[WhiteClock "0:00:26"]
[BlackClock "0:00:00"]
[Board "82"]

1. e4 {[%clk 0:03:00]}  c5 {[%clk 0:02:59]} 2. Nf3 {[%clk 0:03:00]}  d6 {[%clk 0:02:58]} 3. d4 {[%clk 0:03:00]}  cxd4 {[%clk 0:02:58]} 4. Nxd4 {[%clk 0:03:00]}  Nf6 {[%clk 0:02:58]} 5. Nc3 {[%clk 0:02:55]}  a6 {[%clk 0:02:56]} 6. Rg1 {[%clk 0:02:55]}  e5 {[%clk 0:02:49]} 7. Nb3 {[%clk 0:02:52]}  Be6 {[%clk 0:02:48]} 8. g4 {[%clk 0:02:48]}  Nc6 {[%clk 0:02:40]} 9. g5 {[%clk 0:02:40]}  Nd7 {[%clk 0:02:39]} 10. Be3 {[%clk 0:02:39]}  Nc5 {[%clk 0:02:28]} 11. h4 {[%clk 0:02:32]}  Be7 {[%clk 0:02:20]} 12. Qd2 {[%clk 0:01:53]}  Rc8 {[%clk 0:02:19]} 13. h5 {[%clk 0:01:44]}  b5 {[%clk 0:02:02]} 14. f3 {[%clk 0:01:29]}  Qc7 {[%clk 0:01:32]} 15. Nd5 {[%clk 0:01:19]}  Bxd5 {[%clk 0:01:27]} 16. exd5 {[%clk 0:01:20]}  Nb8 {[%clk 0:01:27]} 17. c4 {[%clk 0:01:08]}  bxc4 {[%clk 0:01:03]} 18. Bxc4 {[%clk 0:01:09]}  Nbd7 {[%clk 0:01:04]} 19. Nxc5 {[%clk 0:00:48]}  Nxc5 {[%clk 0:01:02]} 20. Kf2 {[%clk 0:00:46]}  O-O {[%clk 0:00:59]} 21. Rac1 {[%clk 0:00:45]}  Qd7 {[%clk 0:00:56]} 22. b4 {[%clk 0:00:43]}  Nb7 {[%clk 0:00:29]} 23. Bxa6 {[%clk 0:00:40]}  Ra8 {[%clk 0:00:27]} 24. Qe2 {[%clk 0:00:39]}  Rfb8 {[%clk 0:00:23]} 25. Bb5 {[%clk 0:00:37]}  Qh3 {[%clk 0:00:21]} 26. Rh1 {[%clk 0:00:36]}  Qf5 {[%clk 0:00:20]} 27. Bd3 {[%clk 0:00:35]}  Qd7 {[%clk 0:00:19]} 28. Qc2 {[%clk 0:00:32]}  g6 {[%clk 0:00:09]} 29. hxg6 {[%clk 0:00:32]}  hxg6 {[%clk 0:00:08]} 30. Bxg6 {[%clk 0:00:32]}  Rxa2 {[%clk 0:00:06]} 31. Qxa2 {[%clk 0:00:27]}  fxg6 {[%clk 0:00:07]} 32. Qc2 {[%clk 0:00:27]}  Kg7 {[%clk 0:00:04]} 33. Rh6 {[%clk 0:00:26]}  Qe8 {[%clk 0:00:00]} 34. Rch1 {[%clk 0:00:26]} 1-0


[Site "https://www.chess.com"]

[Event "Titled Tuesday Blitz November 07 Late 2023"]
[White "Polaczek, Richard"]
[Black "aghasiyevkamal"]
[WhiteFideId "200026"]
[WhiteElo "2431"]
[BlackElo "2614"]
[Result "0-1"]
[Round "3"]
[TimeControl "180+1"]
[Date "2023.11.07"]
[WhiteClock "0:00:01"]
[BlackClock "0:00:12"]
[Board "84"]

1. d4 {[%clk 0:03:00]}  d5 {[%clk 0:02:58]} 2. c4 {[%clk 0:03:00]}  e6 {[%clk 0:02:57]} 3. Nc3 {[%clk 0:02:59]}  Nf6 {[%clk 0:02:56]} 4. cxd5 {[%clk 0:02:58]}  exd5 {[%clk 0:02:56]} 5. Bg5 {[%clk 0:02:58]}  c6 {[%clk 0:02:56]} 6. Qc2 {[%clk 0:02:57]}  Nbd7 {[%clk 0:02:55]} 7. e3 {[%clk 0:02:56]}  Be7 {[%clk 0:02:56]} 8. Bd3 {[%clk 0:02:55]}  h6 {[%clk 0:02:56]} 9. Bh4 {[%clk 0:02:54]}  Nh5 {[%clk 0:02:56]} 10. Bxe7 {[%clk 0:02:52]}  Qxe7 {[%clk 0:02:56]} 11. Nge2 {[%clk 0:02:51]}  Nb6 {[%clk 0:02:51]} 12. O-O {[%clk 0:02:48]}  O-O {[%clk 0:02:49]} 13. Rae1 {[%clk 0:02:15]}  Bg4 {[%clk 0:02:39]} 14. Kh1 {[%clk 0:02:12]}  Bxe2 {[%clk 0:02:37]} 15. Rxe2 {[%clk 0:02:08]}  Rac8 {[%clk 0:02:34]} 16. Ree1 {[%clk 0:02:00]}  c5 {[%clk 0:02:12]} 17. dxc5 {[%clk 0:01:59]}  Qxc5 {[%clk 0:02:12]} 18. Qd2 {[%clk 0:01:59]}  Nc4 {[%clk 0:02:01]} 19. Bxc4 {[%clk 0:01:56]}  dxc4 {[%clk 0:02:00]} 20. e4 {[%clk 0:01:50]}  Nf6 {[%clk 0:01:50]} 21. e5 {[%clk 0:01:45]}  Rcd8 {[%clk 0:01:50]} 22. Qc2 {[%clk 0:01:30]}  Ng4 {[%clk 0:01:36]} 23. Qf5 {[%clk 0:01:18]}  Rd4 {[%clk 0:01:26]} 24. f4 {[%clk 0:01:04]}  Nf6 {[%clk 0:01:01]} 25. Rd1 {[%clk 0:00:47]}  Rfd8 {[%clk 0:00:47]} 26. Rxd4 {[%clk 0:00:46]}  Rxd4 {[%clk 0:00:47]} 27. h3 {[%clk 0:00:46]}  Nd5 {[%clk 0:00:34]} 28. Nxd5 {[%clk 0:00:29]}  Qxd5 {[%clk 0:00:33]} 29. Kh2 {[%clk 0:00:21]}  Rd2 {[%clk 0:00:32]} 30. Rg1 {[%clk 0:00:14]}  b5 {[%clk 0:00:28]} 31. Qc8+ {[%clk 0:00:13]}  Kh7 {[%clk 0:00:26]} 32. Qf5+ {[%clk 0:00:12]}  g6 {[%clk 0:00:26]} 33. Qf6 {[%clk 0:00:12]}  Qe6 {[%clk 0:00:22]} 34. Qh4 {[%clk 0:00:06]}  Rxb2 {[%clk 0:00:18]} 35. Rf1 {[%clk 0:00:06]}  Qd5 {[%clk 0:00:17]} 36. Qg3 {[%clk 0:00:06]}  Qd3 {[%clk 0:00:13]} 37. Qg4 {[%clk 0:00:01]}  Qxf1 {[%clk 0:00:12]} 0-1


[Site "https://www.chess.com"]

[Event "Titled Tuesday Blitz November 07 Late 2023"]
[White "GatoRojo150"]
[Black "ATM622"]
[WhiteElo "2612"]
[BlackElo "2429"]
[Result "1-0"]
[Round "3"]
[TimeControl "180+1"]
[Date "2023.11.07"]
[WhiteClock "0:00:21"]
[BlackClock "0:00:02"]
[Board "85"]

1. e4 {[%clk 0:03:00]}  c6 {[%clk 0:02:57]} 2. Nc3 {[%clk 0:03:00]}  d5 {[%clk 0:02:58]} 3. Nf3 {[%clk 0:03:00]}  dxe4 {[%clk 0:02:58]} 4. Nxe4 {[%clk 0:03:01]}  Bf5 {[%clk 0:02:56]} 5. Ng3 {[%clk 0:03:01]}  Bg6 {[%clk 0:02:56]} 6. h4 {[%clk 0:03:01]}  h6 {[%clk 0:02:47]} 7. Ne5 {[%clk 0:03:01]}  Qd6 {[%clk 0:02:30]} 8. d4 {[%clk 0:02:59]}  Nd7 {[%clk 0:02:25]} 9. Nxg6 {[%clk 0:02:55]}  Qxg6 {[%clk 0:02:22]} 10. Bd3 {[%clk 0:02:55]}  Qd6 {[%clk 0:02:20]} 11. c3 {[%clk 0:02:54]}  Ngf6 {[%clk 0:02:19]} 12. Qf3 {[%clk 0:02:54]}  e6 {[%clk 0:02:19]} 13. Bf4 {[%clk 0:02:53]}  Qd5 {[%clk 0:02:16]} 14. Qe2 {[%clk 0:02:48]}  Qa5 {[%clk 0:01:32]} 15. O-O {[%clk 0:02:45]}  Be7 {[%clk 0:01:31]} 16. b4 {[%clk 0:02:45]}  Qd8 {[%clk 0:01:24]} 17. Rfe1 {[%clk 0:02:40]}  O-O {[%clk 0:01:23]} 18. Qf3 {[%clk 0:02:26]}  Nd5 {[%clk 0:01:20]} 19. Bd2 {[%clk 0:02:21]}  Bxh4 {[%clk 0:01:17]} 20. Nh5 {[%clk 0:02:17]}  Bg5 {[%clk 0:01:15]} 21. Qg4 {[%clk 0:02:11]}  N7f6 {[%clk 0:01:09]} 22. Nxf6+ {[%clk 0:02:06]}  Nxf6 {[%clk 0:00:59]} 23. Qe2 {[%clk 0:01:59]}  Bxd2 {[%clk 0:00:58]} 24. Qxd2 {[%clk 0:02:00]}  a5 {[%clk 0:00:56]} 25. Re3 {[%clk 0:01:43]}  axb4 {[%clk 0:00:52]} 26. Rg3 {[%clk 0:01:43]}  Kh8 {[%clk 0:00:45]} 27. Rh3 {[%clk 0:01:43]}  Ng8 {[%clk 0:00:32]} 28. Bc2 {[%clk 0:01:36]}  bxc3 {[%clk 0:00:23]} 29. Qd3 {[%clk 0:01:37]}  f5 {[%clk 0:00:22]} 30. Qxc3 {[%clk 0:01:31]}  Qa5 {[%clk 0:00:17]} 31. Qe3 {[%clk 0:01:26]}  Qd5 {[%clk 0:00:14]} 32. Bb3 {[%clk 0:01:25]}  Qd6 {[%clk 0:00:13]} 33. Rd1 {[%clk 0:01:22]}  Rae8 {[%clk 0:00:12]} 34. Qe2 {[%clk 0:01:09]}  e5 {[%clk 0:00:11]} 35. d5 {[%clk 0:00:59]}  cxd5 {[%clk 0:00:08]} 36. Rxd5 {[%clk 0:01:00]}  Qf6 {[%clk 0:00:08]} 37. Rd7 {[%clk 0:00:59]}  e4 {[%clk 0:00:08]} 38. Rxb7 {[%clk 0:00:55]}  f4 {[%clk 0:00:08]} 39. Rb4 {[%clk 0:00:32]}  f3 {[%clk 0:00:08]} 40. Qe3 {[%clk 0:00:28]}  Qg6 {[%clk 0:00:03]} 41. Rg3 {[%clk 0:00:26]}  Qd6 {[%clk 0:00:04]} 42. Rd4 {[%clk 0:00:26]}  Qe5 {[%clk 0:00:03]} 43. Rd7 {[%clk 0:00:24]}  Re7 {[%clk 0:00:01]} 44. Rd5 {[%clk 0:00:23]}  Qf4 {[%clk 0:00:01]} 45. Qxf4 {[%clk 0:00:22]}  Rxf4 {[%clk 0:00:02]} 46. Rd8 {[%clk 0:00:23]}  Kh7 {[%clk 0:00:01]} 47. Bxg8+ {[%clk 0:00:22]}  Kh8 {[%clk 0:00:02]} 48. Bf7+ {[%clk 0:00:20]}  Kh7 {[%clk 0:00:02]} 49. Bg6# {[%clk 0:00:21]} 1-0


[Site "https://www.chess.com"]

[Event "Titled Tuesday Blitz November 07 Late 2023"]
[White "ChessLebaneseSalah"]
[Black "Golubev, Mikhail"]
[BlackFideId "14100983"]
[WhiteElo "2425"]
[BlackElo "2612"]
[Result "0-1"]
[Round "3"]
[TimeControl "180+1"]
[Date "2023.11.07"]
[WhiteClock "0:00:02"]
[BlackClock "0:01:15"]
[Board "86"]

1. e4 {[%clk 0:03:00]}  c5 {[%clk 0:02:59]} 2. Nf3 {[%clk 0:03:00]}  d6 {[%clk 0:02:59]} 3. d4 {[%clk 0:02:59]}  Nf6 {[%clk 0:02:59]} 4. Nc3 {[%clk 0:02:55]}  cxd4 {[%clk 0:02:59]} 5. Nxd4 {[%clk 0:02:56]}  Nc6 {[%clk 0:02:59]} 6. Be3 {[%clk 0:02:42]}  Ng4 {[%clk 0:02:58]} 7. Bb5 {[%clk 0:02:42]}  Nxe3 {[%clk 0:02:42]} 8. Nxc6 {[%clk 0:02:42]}  Nxd1 {[%clk 0:02:32]} 9. Nxd8+ {[%clk 0:02:42]}  Kxd8 {[%clk 0:02:32]} 10. Rxd1 {[%clk 0:02:40]}  e6 {[%clk 0:02:29]} 11. O-O {[%clk 0:02:38]}  a6 {[%clk 0:02:28]} 12. Bd3 {[%clk 0:02:34]}  Ke7 {[%clk 0:02:15]} 13. Rfe1 {[%clk 0:02:33]}  g6 {[%clk 0:02:12]} 14. Ne2 {[%clk 0:02:32]}  Bg7 {[%clk 0:02:12]} 15. c3 {[%clk 0:02:23]}  b5 {[%clk 0:02:12]} 16. Nd4 {[%clk 0:02:22]}  Bb7 {[%clk 0:02:10]} 17. f4 {[%clk 0:02:11]}  Rac8 {[%clk 0:02:06]} 18. Bc2 {[%clk 0:02:04]}  b4 {[%clk 0:01:59]} 19. e5 {[%clk 0:01:38]}  dxe5 {[%clk 0:01:55]} 20. fxe5 {[%clk 0:01:36]}  bxc3 {[%clk 0:01:55]} 21. bxc3 {[%clk 0:01:36]}  Rxc3 {[%clk 0:01:53]} 22. Rb1 {[%clk 0:01:36]}  Bd5 {[%clk 0:01:49]} 23. Rb6 {[%clk 0:01:04]}  Rc4 {[%clk 0:01:34]} 24. Rd1 {[%clk 0:00:13]}  Bxe5 {[%clk 0:01:29]} 25. Nf3 {[%clk 0:00:09]}  Bxf3 {[%clk 0:01:29]} 26. gxf3 {[%clk 0:00:09]}  Rxc2 {[%clk 0:01:27]} 27. Rb7+ {[%clk 0:00:08]}  Rc7 {[%clk 0:01:22]} 28. Rb6 {[%clk 0:00:06]}  Ra8 {[%clk 0:01:16]} 29. Kg2 {[%clk 0:00:02]}  a5 {[%clk 0:01:15]} 0-1


[Site "https://www.chess.com"]

[Event "Titled Tuesday Blitz November 07 Late 2023"]
[White "Fiorito, Francisco"]
[Black "Carrasco Miranda, Andres"]
[WhiteFideId "180165"]
[BlackFideId "3405990"]
[WhiteElo "2603"]
[BlackElo "2416"]
[Result "1-0"]
[Round "3"]
[TimeControl "180+1"]
[Date "2023.11.07"]
[WhiteClock "0:00:35"]
[BlackClock "0:00:09"]
[Board "89"]

1. Nf3 {[%clk 0:03:00]}  Nf6 {[%clk 0:02:56]} 2. g3 {[%clk 0:03:01]}  g6 {[%clk 0:02:51]} 3. b3 {[%clk 0:02:59]}  Bg7 {[%clk 0:02:49]} 4. Bb2 {[%clk 0:03:00]}  O-O {[%clk 0:02:50]} 5. Bg2 {[%clk 0:03:00]}  d6 {[%clk 0:02:49]} 6. d4 {[%clk 0:03:00]}  Nc6 {[%clk 0:02:48]} 7. O-O {[%clk 0:02:56]}  Bf5 {[%clk 0:02:48]} 8. Nbd2 {[%clk 0:02:31]}  Ne4 {[%clk 0:02:44]} 9. c4 {[%clk 0:02:23]}  Nxd2 {[%clk 0:02:39]} 10. Qxd2 {[%clk 0:02:22]}  Be4 {[%clk 0:02:39]} 11. d5 {[%clk 0:02:11]}  Bxb2 {[%clk 0:02:39]} 12. Qxb2 {[%clk 0:02:11]}  Bxf3 {[%clk 0:02:37]} 13. exf3 {[%clk 0:02:10]}  Ne5 {[%clk 0:02:35]} 14. f4 {[%clk 0:02:10]}  Nd7 {[%clk 0:02:35]} 15. b4 {[%clk 0:02:09]}  a5 {[%clk 0:02:34]} 16. a3 {[%clk 0:02:08]}  b6 {[%clk 0:02:25]} 17. h4 {[%clk 0:02:07]}  Rb8 {[%clk 0:02:11]} 18. Qd4 {[%clk 0:01:56]}  e5 {[%clk 0:02:10]} 19. dxe6 {[%clk 0:01:52]}  fxe6 {[%clk 0:02:10]} 20. Bh3 {[%clk 0:01:50]}  Qf6 {[%clk 0:02:07]} 21. Qe4 {[%clk 0:01:41]}  Rbe8 {[%clk 0:02:02]} 22. Qc6 {[%clk 0:01:32]}  Qd8 {[%clk 0:02:01]} 23. Rfe1 {[%clk 0:01:27]}  Kf7 {[%clk 0:01:17]} 24. Rad1 {[%clk 0:01:21]}  axb4 {[%clk 0:01:14]} 25. axb4 {[%clk 0:01:20]}  Nf6 {[%clk 0:01:10]} 26. c5 {[%clk 0:01:13]}  bxc5 {[%clk 0:01:11]} 27. bxc5 {[%clk 0:01:13]}  d5 {[%clk 0:00:54]} 28. Rxe6 {[%clk 0:01:07]}  Rxe6 {[%clk 0:00:54]} 29. Bxe6+ {[%clk 0:01:04]}  Kg7 {[%clk 0:00:54]} 30. Bxd5 {[%clk 0:01:03]}  Re8 {[%clk 0:00:46]} 31. Bf3 {[%clk 0:01:02]}  Qe7 {[%clk 0:00:44]} 32. Kg2 {[%clk 0:01:01]}  Rd8 {[%clk 0:00:41]} 33. Rxd8 {[%clk 0:00:51]}  Qxd8 {[%clk 0:00:42]} 34. Qe6 {[%clk 0:00:47]}  h5 {[%clk 0:00:35]} 35. Qe5 {[%clk 0:00:44]}  Qd7 {[%clk 0:00:28]} 36. f5 {[%clk 0:00:37]}  gxf5 {[%clk 0:00:25]} 37. c6 {[%clk 0:00:37]}  Qc8 {[%clk 0:00:15]} 38. Bxh5 {[%clk 0:00:37]}  f4 {[%clk 0:00:11]} 39. Qg5+ {[%clk 0:00:33]}  Kh7 {[%clk 0:00:11]} 40. Qg6+ {[%clk 0:00:33]}  Kh8 {[%clk 0:00:10]} 41. Qxf6+ {[%clk 0:00:34]}  Kh7 {[%clk 0:00:10]} 42. Bg6+ {[%clk 0:00:34]}  Kh6 {[%clk 0:00:09]} 43. Bf5+ {[%clk 0:00:34]}  Kh5 {[%clk 0:00:09]} 44. g4# {[%clk 0:00:35]} 1-0


[Site "https://www.chess.com"]